Workbook

Sheet Clasificador
E1: CORKCLASS 1.0
E3: Software de clasificación de corcho en plancha por clases de calidad INIA-UPM, 2014 - Todos los derechos reservados
A6: ESPACIO PARA LA TOMA DE DATOS | L6: CLASIFICACIÓN | N6: OPCIONES
A7: IDENTIDAD | B7: CALIBRE MEDIO | C7: COEFiCIENTE DE POROSIDAD | D7: DEFECTOS >20% | E7: VIENTRE | F7: RASPA | G7: EXFOLIACIÓN | H7: INSECTOS | I7: RAJADO | J7: MANCHA AMARILLA | K7: TIPO DE POROSIDAD | L7: MODELO 2TC | M7: MODELO 2TR
N16: RESUMEN DE RESULTADOS
O18: TAPONABLE | Q18: 0 | R18: %
O19: REFUGO | Q19: 100 | R19: %
O26: CALIBRE MEDIO | Q26: 32 | R26: mm
O27: COEF. POROSIAD MEDIO | Q27: 21 | R27: %

Sheet Ayuda

Sheet Código
A1: IDENTIDAD | B1: CALIBRE MEDIO | C1: COEFiCIENTE DE POROSIDAD | D1: DEFECTOS >20% | E1: VIENTRE | F1: RASPA | G1: EXFOLIACIÓN | H1: INSECTOS | I1: RAJADO | J1: MANCHA AMARILLA | K1: TIPO DE POROSIDAD | L1: VIENTRE1 | M1: VIENTRE2 | N1: RASPA1 | O1: RASPA2 | P1: EXFOL1 | Q1: EXFOL2 | R1: INSEC1 | S1: INSEC2 | T1: RAJA1 | U1: RAJA2 | V1: PT1 | W1: PT2 | X1: PT3 | Y1: PT4 | Z1: PT5 | AA1: (2TC) LOGIT (Y=1) | AB1: (2TC) PR(Y=1) | AC1: (2TC) PR(Y=0) | AD1: (2TR) LOGIT (Y=1) | AE1: (2TR) PR(Y=1) | AF1: (2TR) PR(Y=0) | AG1: MODELO 2TC | AH1: MODELO 2TR
AL3: VALOR 2TC | AM3: VALOR 2TR | AN3: %2TC | AO3: %2TR | AP3: %A MOSTRAR
A4: 1 | B4: 32 | C4: 21 | D4: no | E4: 1 | F4: 2 | G4: 0 | H4: 1 | I4: 0 | J4: 1 | K4: C | L4: =IF(E4=1,1,0) -> 1 | M4: =IF(E4=2,1,0) -> 0 | N4: =IF(F4=1,1,0) -> 0 | O4: =IF(F4=2,1,0) -> 1 | P4: =IF(G4=1,1,0) -> 0 | Q4: =IF(G4=2,1,0) -> 0 | R4: =IF(H4=1,1,0) -> 1 | S4: =IF(H4=2,1,0) -> 0 | T4: =IF(I4=1,1,0) -> 0 | U4: =IF(I4=2,1,0) -> 0 | V4: =IF(K4="A",1,0) -> 0 | W4: =IF(K4="B",1,0) -> 0 | X4: =IF(K4="C",1,0) -> 1 | Y4: =IF(K4="D",1,0) -> 0 | Z4: =IF(K4="E",1,0) -> 0 | AA4: =(-0.0296*T4)-(1.046*U4)-(1.34*P4)-(0.1562*Q4)-(1.051*R4)-(1.69*S4)-(1.153*N4)-(0.733*O4)+(2.867*V4)+(1.675*W4)+(1.031*X4)+(1.445*Y4)-(0.9243*Z4)-(0.371*C4)+5.773 -> -2.771 | AB4: =(EXP(AA4))/(1+(EXP(AA4))) -> 0.05891154803 | AC4: =1-AB4 -> 0.941088452 | AD4: =(-0.416*L4)+(-0.9796*M4)+(0.06187*T4)+(-1.039*U4)+(-0.8492*P4)+(-1.698*Q4)+(-0.5815*R4)+(-1.828*S4)+(-0.768*N4)+(-0.9855*O4)+(1.345*V4)+(0.4466*W4)+(-0.797*X4)+(-0.3943*Y4)+(-3.606*Z4)+3.936 -> 1.156 | AE4: =(EXP(AD4))/(1+(EXP(AD4))) -> 0.7606051344 | AF4: =1-AE4 -> 0.2393948656 | AG4: =IF(A4="","",IF(C4="","",IF(J4<>0,"R",IF(B4<22,"R",IF(D4="SI","R",IF(AC4>AB4,"R","1ª-7ª")))))) -> R | AH4: =IF(A4="","",IF(J4<>0,"R",IF(B4<22,"R",IF(D4="SI","R",IF(AF4>AE4,"R","1ª-7ª"))))) -> R | AJ4: PROCESABLE | AL4: =COUNTIF(AG4:AG1003,"1ª-7ª") -> 0 | AM4: =COUNTIF(AH4:AH1003,"1ª-7ª") -> 0 | AN4: =IF(AL6=0,"",(AL4/AL6)*100) -> 0 | AO4: =IF(AL6=0,"",(AM4/AL6)*100) -> 0 | AP4: =IF(C4="",AO4,AN4) -> 0
L5: =IF(E5=1,1,0) -> 0 | M5: =IF(E5=2,1,0) -> 0 | N5: =IF(F5=1,1,0) -> 0 | O5: =IF(F5=2,1,0) -> 0 | P5: =IF(G5=1,1,0) -> 0 | Q5: =IF(G5=2,1,0) -> 0 | R5: =IF(H5=1,1,0) -> 0 | S5: =IF(H5=2,1,0) -> 0 | T5: =IF(I5=1,1,0) -> 0 | U5: =IF(I5=2,1,0) -> 0 | V5: =IF(K5="A",1,0) -> 0 | W5: =IF(K5="B",1,0) -> 0 | X5: =IF(K5="C",1,0) -> 0 | Y5: =IF(K5="D",1,0) -> 0 | Z5: =IF(K5="E",1,0) -> 0 | AA5: =(-0.0296*T5)-(1.046*U5)-(1.34*P5)-(0.1562*Q5)-(1.051*R5)-(1.69*S5)-(1.153*N5)-(0.733*O5)+(2.867*V5)+(1.675*W5)+(1.031*X5)+(1.445*Y5)-(0.9243*Z5)-(0.371*C5)+5.773 -> 5.773 | AB5: =(EXP(AA5))/(1+(EXP(AA5))) -> 0.9968992324 | AC5: =1-AB5 -> 0.003100767601 | AD5: =(-0.416*L5)+(-0.9796*M5)+(0.06187*T5)+(-1.039*U5)+(-0.8492*P5)+(-1.698*Q5)+(-0.5815*R5)+(-1.828*S5)+(-0.768*N5)+(-0.9855*O5)+(1.345*V5)+(0.4466*W5)+(-0.797*X5)+(-0.3943*Y5)+(-3.606*Z5)+3.936 -> 3.936 | AE5: =(EXP(AD5))/(1+(EXP(AD5))) -> 0.9808478055 | AF5: =1-AE5 -> 0.01915219452 | AG5: =IF(A5="","",IF(C5="","",IF(J5<>0,"R",IF(B5<22,"R",IF(D5="SI","R",IF(AC5>AB5,"R","1ª-7ª")))))) ->  | AH5: =IF(A5="","",IF(J5<>0,"R",IF(B5<22,"R",IF(D5="SI","R",IF(AF5>AE5,"R","1ª-7ª"))))) ->  | AJ5: REFUGO | AL5: =COUNTIF(AG4:AG1003,"R") -> 1 | AM5: =COUNTIF(AH4:AH1003,"R") -> 1 | AN5: =IF(AL6=0,"",(AL5/AL6)*100) -> 100 | AO5: =IF(AL6=0,"",(AM5/AL6)*100) -> 100 | AP5: =IF(C4="",AO5,AN5) -> 100
L6: 0 | M6: 0 | N6: 0 | O6: 0 | P6: 0 | Q6: 0 | R6: 0 | S6: 0 | T6: 0 | U6: 0 | V6: 0 | W6: 0 | X6: 0 | Y6: 0 | Z6: 0 | AA6: 5.773 | AB6: 0.9968992324 | AC6: 0.003100767601 | AD6: 3.936 | AE6: 0.9808478055 | AF6: 0.01915219452 | AJ6: TOTAL | AL6: =1000-COUNTIF(AH4:AH1003,"") -> 1 | AM6: =1000-COUNTIF(AH4:AH1003,"") -> 1
L7: 0 | M7: 0 | N7: 0 | O7: 0 | P7: 0 | Q7: 0 | R7: 0 | S7: 0 | T7: 0 | U7: 0 | V7: 0 | W7: 0 | X7: 0 | Y7: 0 | Z7: 0 | AA7: 5.773 | AB7: 0.9968992324 | AC7: 0.003100767601 | AD7: 3.936 | AE7: 0.9808478055 | AF7: 0.01915219452
L8: 0 | M8: 0 | N8: 0 | O8: 0 | P8: 0 | Q8: 0 | R8: 0 | S8: 0 | T8: 0 | U8: 0 | V8: 0 | W8: 0 | X8: 0 | Y8: 0 | Z8: 0 | AA8: 5.773 | AB8: 0.9968992324 | AC8: 0.003100767601 | AD8: 3.936 | AE8: 0.9808478055 | AF8: 0.01915219452 | AJ8: CALIBRE MEDIO | AL8: =IF(AL6=0,"",AVERAGE(B4:B1003)) -> 32
L9: 0 | M9: 0 | N9: 0 | O9: 0 | P9: 0 | Q9: 0 | R9: 0 | S9: 0 | T9: 0 | U9: 0 | V9: 0 | W9: 0 | X9: 0 | Y9: 0 | Z9: 0 | AA9: 5.773 | AB9: 0.9968992324 | AC9: 0.003100767601 | AD9: 3.936 | AE9: 0.9808478055 | AF9: 0.01915219452 | AJ9: COEF. POROSIDAD MEDIO | AL9: =IF(C4="","",IF(AL6=0,"",AVERAGE(C4:C1003))) -> 21
L10: 0 | M10: 0 | N10: 0 | O10: 0 | P10: 0 | Q10: 0 | R10: 0 | S10: 0 | T10: 0 | U10: 0 | V10: 0 | W10: 0 | X10: 0 | Y10: 0 | Z10: 0 | AA10: 5.773 | AB10: 0.9968992324 | AC10: 0.003100767601 | AD10: 3.936 | AE10: 0.9808478055 | AF10: 0.01915219452
L11: 0 | M11: 0 | N11: 0 | O11: 0 | P11: 0 | Q11: 0 | R11: 0 | S11: 0 | T11: 0 | U11: 0 | V11: 0 | W11: 0 | X11: 0 | Y11: 0 | Z11: 0 | AA11: 5.773 | AB11: 0.9968992324 | AC11: 0.003100767601 | AD11: 3.936 | AE11: 0.9808478055 | AF11: 0.01915219452 | AJ11: ANOMALÍAS
L12: 0 | M12: 0 | N12: 0 | O12: 0 | P12: 0 | Q12: 0 | R12: 0 | S12: 0 | T12: 0 | U12: 0 | V12: 0 | W12: 0 | X12: 0 | Y12: 0 | Z12: 0 | AA12: 5.773 | AB12: 0.9968992324 | AC12: 0.003100767601 | AD12: 3.936 | AE12: 0.9808478055 | AF12: 0.01915219452
L13: 0 | M13: 0 | N13: 0 | O13: 0 | P13: 0 | Q13: 0 | R13: 0 | S13: 0 | T13: 0 | U13: 0 | V13: 0 | W13: 0 | X13: 0 | Y13: 0 | Z13: 0 | AA13: 5.773 | AB13: 0.9968992324 | AC13: 0.003100767601 | AD13: 3.936 | AE13: 0.9808478055 | AF13: 0.01915219452 | AJ13: DEFECTOS | AK13: SI | AL13: 1
L14: 0 | M14: 0 | N14: 0 | O14: 0 | P14: 0 | Q14: 0 | R14: 0 | S14: 0 | T14: 0 | U14: 0 | V14: 0 | W14: 0 | X14: 0 | Y14: 0 | Z14: 0 | AA14: 5.773 | AB14: 0.9968992324 | AC14: 0.003100767601 | AD14: 3.936 | AE14: 0.9808478055 | AF14: 0.01915219452 | AJ14: >20% | AK14: NO | AL14: 2
L15: 0 | M15: 0 | N15: 0 | O15: 0 | P15: 0 | Q15: 0 | R15: 0 | S15: 0 | T15: 0 | U15: 0 | V15: 0 | W15: 0 | X15: 0 | Y15: 0 | Z15: 0 | AA15: 5.773 | AB15: 0.9968992324 | AC15: 0.003100767601 | AD15: 3.936 | AE15: 0.9808478055 | AF15: 0.01915219452 | AJ15: MANCHA | AK15: 0 | AL15: 3
L16: 0 | M16: 0 | N16: 0 | O16: 0 | P16: 0 | Q16: 0 | R16: 0 | S16: 0 | T16: 0 | U16: 0 | V16: 0 | W16: 0 | X16: 0 | Y16: 0 | Z16: 0 | AA16: 5.773 | AB16: 0.9968992324 | AC16: 0.003100767601 | AD16: 3.936 | AE16: 0.9808478055 | AF16: 0.01915219452 | AJ16: AMARILLA | AK16: 1 | AL16: 3
L17: 0 | M17: 0 | N17: 0 | O17: 0 | P17: 0 | Q17: 0 | R17: 0 | S17: 0 | T17: 0 | U17: 0 | V17: 0 | W17: 0 | X17: 0 | Y17: 0 | Z17: 0 | AA17: 5.773 | AB17: 0.9968992324 | AC17: 0.003100767601 | AD17: 3.936 | AE17: 0.9808478055 | AF17: 0.01915219452 | AJ17: VIENTRE | AK17: 0 | AL17: =COUNTIF(E4:E1003,0) -> 0
L18: 0 | M18: 0 | N18: 0 | O18: 0 | P18: 0 | Q18: 0 | R18: 0 | S18: 0 | T18: 0 | U18: 0 | V18: 0 | W18: 0 | X18: 0 | Y18: 0 | Z18: 0 | AA18: 5.773 | AB18: 0.9968992324 | AC18: 0.003100767601 | AD18: 3.936 | AE18: 0.9808478055 | AF18: 0.01915219452 | AK18: 1 | AL18: =COUNTIF(E4:E1003,1) -> 1
L19: 0 | M19: 0 | N19: 0 | O19: 0 | P19: 0 | Q19: 0 | R19: 0 | S19: 0 | T19: 0 | U19: 0 | V19: 0 | W19: 0 | X19: 0 | Y19: 0 | Z19: 0 | AA19: 5.773 | AB19: 0.9968992324 | AC19: 0.003100767601 | AD19: 3.936 | AE19: 0.9808478055 | AF19: 0.01915219452 | AK19: 2 | AL19: =COUNTIF(E4:E1003,2) -> 0
L20: 0 | M20: 0 | N20: 0 | O20: 0 | P20: 0 | Q20: 0 | R20: 0 | S20: 0 | T20: 0 | U20: 0 | V20: 0 | W20: 0 | X20: 0 | Y20: 0 | Z20: 0 | AA20: 5.773 | AB20: 0.9968992324 | AC20: 0.003100767601 | AD20: 3.936 | AE20: 0.9808478055 | AF20: 0.01915219452 | AJ20: RASPA | AK20: 0 | AL20: =COUNTIF(F4:F1003,0) -> 0
L21: 0 | M21: 0 | N21: 0 | O21: 0 | P21: 0 | Q21: 0 | R21: 0 | S21: 0 | T21: 0 | U21: 0 | V21: 0 | W21: 0 | X21: 0 | Y21: 0 | Z21: 0 | AA21: 5.773 | AB21: 0.9968992324 | AC21: 0.003100767601 | AD21: 3.936 | AE21: 0.9808478055 | AF21: 0.01915219452 | AK21: 1 | AL21: =COUNTIF(F4:F1003,1) -> 0
L22: 0 | M22: 0 | N22: 0 | O22: 0 | P22: 0 | Q22: 0 | R22: 0 | S22: 0 | T22: 0 | U22: 0 | V22: 0 | W22: 0 | X22: 0 | Y22: 0 | Z22: 0 | AA22: 5.773 | AB22: 0.9968992324 | AC22: 0.003100767601 | AD22: 3.936 | AE22: 0.9808478055 | AF22: 0.01915219452 | AK22: 2 | AL22: =COUNTIF(F4:F1003,2) -> 1
L23: 0 | M23: 0 | N23: 0 | O23: 0 | P23: 0 | Q23: 0 | R23: 0 | S23: 0 | T23: 0 | U23: 0 | V23: 0 | W23: 0 | X23: 0 | Y23: 0 | Z23: 0 | AA23: 5.773 | AB23: 0.9968992324 | AC23: 0.003100767601 | AD23: 3.936 | AE23: 0.9808478055 | AF23: 0.01915219452 | AJ23: EXFOLIACIÓN | AK23: 0 | AL23: =COUNTIF(G4:G1003,0) -> 1
L24: 0 | M24: 0 | N24: 0 | O24: 0 | P24: 0 | Q24: 0 | R24: 0 | S24: 0 | T24: 0 | U24: 0 | V24: 0 | W24: 0 | X24: 0 | Y24: 0 | Z24: 0 | AA24: 5.773 | AB24: 0.9968992324 | AC24: 0.003100767601 | AD24: 3.936 | AE24: 0.9808478055 | AF24: 0.01915219452 | AK24: 1 | AL24: =COUNTIF(G4:G1003,1) -> 0
L25: 0 | M25: 0 | N25: 0 | O25: 0 | P25: 0 | Q25: 0 | R25: 0 | S25: 0 | T25: 0 | U25: 0 | V25: 0 | W25: 0 | X25: 0 | Y25: 0 | Z25: 0 | AA25: 5.773 | AB25: 0.9968992324 | AC25: 0.003100767601 | AD25: 3.936 | AE25: 0.9808478055 | AF25: 0.01915219452 | AK25: 2 | AL25: =COUNTIF(G4:G1003,2) -> 0
L26: 0 | M26: 0 | N26: 0 | O26: 0 | P26: 0 | Q26: 0 | R26: 0 | S26: 0 | T26: 0 | U26: 0 | V26: 0 | W26: 0 | X26: 0 | Y26: 0 | Z26: 0 | AA26: 5.773 | AB26: 0.9968992324 | AC26: 0.003100767601 | AD26: 3.936 | AE26: 0.9808478055 | AF26: 0.01915219452 | AJ26: INSECTOS | AK26: 0 | AL26: =COUNTIF(H4:H1003,0) -> 0
L27: 0 | M27: 0 | N27: 0 | O27: 0 | P27: 0 | Q27: 0 | R27: 0 | S27: 0 | T27: 0 | U27: 0 | V27: 0 | W27: 0 | X27: 0 | Y27: 0 | Z27: 0 | AA27: 5.773 | AB27: 0.9968992324 | AC27: 0.003100767601 | AD27: 3.936 | AE27: 0.9808478055 | AF27: 0.01915219452 | AK27: 1 | AL27: =COUNTIF(H4:H1003,1) -> 1
L28: 0 | M28: 0 | N28: 0 | O28: 0 | P28: 0 | Q28: 0 | R28: 0 | S28: 0 | T28: 0 | U28: 0 | V28: 0 | W28: 0 | X28: 0 | Y28: 0 | Z28: 0 | AA28: 5.773 | AB28: 0.9968992324 | AC28: 0.003100767601 | AD28: 3.936 | AE28: 0.9808478055 | AF28: 0.01915219452 | AK28: 2 | AL28: =COUNTIF(H4:H1003,2) -> 0
L29: 0 | M29: 0 | N29: 0 | O29: 0 | P29: 0 | Q29: 0 | R29: 0 | S29: 0 | T29: 0 | U29: 0 | V29: 0 | W29: 0 | X29: 0 | Y29: 0 | Z29: 0 | AA29: 5.773 | AB29: 0.9968992324 | AC29: 0.003100767601 | AD29: 3.936 | AE29: 0.9808478055 | AF29: 0.01915219452 | AJ29: RAJADO | AK29: 0 | AL29: =COUNTIF(I4:I1003,0) -> 1
L30: 0 | M30: 0 | N30: 0 | O30: 0 | P30: 0 | Q30: 0 | R30: 0 | S30: 0 | T30: 0 | U30: 0 | V30: 0 | W30: 0 | X30: 0 | Y30: 0 | Z30: 0 | AA30: 5.773 | AB30: 0.9968992324 | AC30: 0.003100767601 | AD30: 3.936 | AE30: 0.9808478055 | AF30: 0.01915219452 | AK30: 1 | AL30: =COUNTIF(I4:I1003,1) -> 0
L31: 0 | M31: 0 | N31: 0 | O31: 0 | P31: 0 | Q31: 0 | R31: 0 | S31: 0 | T31: 0 | U31: 0 | V31: 0 | W31: 0 | X31: 0 | Y31: 0 | Z31: 0 | AA31: 5.773 | AB31: 0.9968992324 | AC31: 0.003100767601 | AD31: 3.936 | AE31: 0.9808478055 | AF31: 0.01915219452 | AK31: 2 | AL31: =COUNTIF(I4:I1003,2) -> 0
L32: 0 | M32: 0 | N32: 0 | O32: 0 | P32: 0 | Q32: 0 | R32: 0 | S32: 0 | T32: 0 | U32: 0 | V32: 0 | W32: 0 | X32: 0 | Y32: 0 | Z32: 0 | AA32: 5.773 | AB32: 0.9968992324 | AC32: 0.003100767601 | AD32: 3.936 | AE32: 0.9808478055 | AF32: 0.01915219452 | AJ32: TIPO DE | AK32: A | AL32: =COUNTIF(K4:K1003,"A") -> 0
L33: 0 | M33: 0 | N33: 0 | O33: 0 | P33: 0 | Q33: 0 | R33: 0 | S33: 0 | T33: 0 | U33: 0 | V33: 0 | W33: 0 | X33: 0 | Y33: 0 | Z33: 0 | AA33: 5.773 | AB33: 0.9968992324 | AC33: 0.003100767601 | AD33: 3.936 | AE33: 0.9808478055 | AF33: 0.01915219452 | AJ33: POROSIDAD | AK33: B | AL33: =COUNTIF(K4:K1003,"B") -> 0
L34: 0 | M34: 0 | N34: 0 | O34: 0 | P34: 0 | Q34: 0 | R34: 0 | S34: 0 | T34: 0 | U34: 0 | V34: 0 | W34: 0 | X34: 0 | Y34: 0 | Z34: 0 | AA34: 5.773 | AB34: 0.9968992324 | AC34: 0.003100767601 | AD34: 3.936 | AE34: 0.9808478055 | AF34: 0.01915219452 | AK34: C | AL34: =COUNTIF(K4:K1003,"C") -> 1
L35: 0 | M35: 0 | N35: 0 | O35: 0 | P35: 0 | Q35: 0 | R35: 0 | S35: 0 | T35: 0 | U35: 0 | V35: 0 | W35: 0 | X35: 0 | Y35: 0 | Z35: 0 | AA35: 5.773 | AB35: 0.9968992324 | AC35: 0.003100767601 | AD35: 3.936 | AE35: 0.9808478055 | AF35: 0.01915219452 | AK35: D | AL35: =COUNTIF(K4:K1003,"D") -> 0
L36: 0 | M36: 0 | N36: 0 | O36: 0 | P36: 0 | Q36: 0 | R36: 0 | S36: 0 | T36: 0 | U36: 0 | V36: 0 | W36: 0 | X36: 0 | Y36: 0 | Z36: 0 | AA36: 5.773 | AB36: 0.9968992324 | AC36: 0.003100767601 | AD36: 3.936 | AE36: 0.9808478055 | AF36: 0.01915219452 | AK36: E | AL36: =COUNTIF(K4:K1003,"E") -> 0
L37: 0 | M37: 0 | N37: 0 | O37: 0 | P37: 0 | Q37: 0 | R37: 0 | S37: 0 | T37: 0 | U37: 0 | V37: 0 | W37: 0 | X37: 0 | Y37: 0 | Z37: 0 | AA37: 5.773 | AB37: 0.9968992324 | AC37: 0.003100767601 | AD37: 3.936 | AE37: 0.9808478055 | AF37: 0.01915219452 | AK37: F | AL37: =COUNTIF(K4:K1003,"F") -> 0
L38: 0 | M38: 0 | N38: 0 | O38: 0 | P38: 0 | Q38: 0 | R38: 0 | S38: 0 | T38: 0 | U38: 0 | V38: 0 | W38: 0 | X38: 0 | Y38: 0 | Z38: 0 | AA38: 5.773 | AB38: 0.9968992324 | AC38: 0.003100767601 | AD38: 3.936 | AE38: 0.9808478055 | AF38: 0.01915219452
L39: 0 | M39: 0 | N39: 0 | O39: 0 | P39: 0 | Q39: 0 | R39: 0 | S39: 0 | T39: 0 | U39: 0 | V39: 0 | W39: 0 | X39: 0 | Y39: 0 | Z39: 0 | AA39: 5.773 | AB39: 0.9968992324 | AC39: 0.003100767601 | AD39: 3.936 | AE39: 0.9808478055 | AF39: 0.01915219452
L40: 0 | M40: 0 | N40: 0 | O40: 0 | P40: 0 | Q40: 0 | R40: 0 | S40: 0 | T40: 0 | U40: 0 | V40: 0 | W40: 0 | X40: 0 | Y40: 0 | Z40: 0 | AA40: 5.773 | AB40: 0.9968992324 | AC40: 0.003100767601 | AD40: 3.936 | AE40: 0.9808478055 | AF40: 0.01915219452
L41: 0 | M41: 0 | N41: 0 | O41: 0 | P41: 0 | Q41: 0 | R41: 0 | S41: 0 | T41: 0 | U41: 0 | V41: 0 | W41: 0 | X41: 0 | Y41: 0 | Z41: 0 | AA41: 5.773 | AB41: 0.9968992324 | AC41: 0.003100767601 | AD41: 3.936 | AE41: 0.9808478055 | AF41: 0.01915219452
L42: 0 | M42: 0 | N42: 0 | O42: 0 | P42: 0 | Q42: 0 | R42: 0 | S42: 0 | T42: 0 | U42: 0 | V42: 0 | W42: 0 | X42: 0 | Y42: 0 | Z42: 0 | AA42: 5.773 | AB42: 0.9968992324 | AC42: 0.003100767601 | AD42: 3.936 | AE42: 0.9808478055 | AF42: 0.01915219452
L43: 0 | M43: 0 | N43: 0 | O43: 0 | P43: 0 | Q43: 0 | R43: 0 | S43: 0 | T43: 0 | U43: 0 | V43: 0 | W43: 0 | X43: 0 | Y43: 0 | Z43: 0 | AA43: 5.773 | AB43: 0.9968992324 | AC43: 0.003100767601 | AD43: 3.936 | AE43: 0.9808478055 | AF43: 0.01915219452
L44: 0 | M44: 0 | N44: 0 | O44: 0 | P44: 0 | Q44: 0 | R44: 0 | S44: 0 | T44: 0 | U44: 0 | V44: 0 | W44: 0 | X44: 0 | Y44: 0 | Z44: 0 | AA44: 5.773 | AB44: 0.9968992324 | AC44: 0.003100767601 | AD44: 3.936 | AE44: 0.9808478055 | AF44: 0.01915219452
L45: 0 | M45: 0 | N45: 0 | O45: 0 | P45: 0 | Q45: 0 | R45: 0 | S45: 0 | T45: 0 | U45: 0 | V45: 0 | W45: 0 | X45: 0 | Y45: 0 | Z45: 0 | AA45: 5.773 | AB45: 0.9968992324 | AC45: 0.003100767601 | AD45: 3.936 | AE45: 0.9808478055 | AF45: 0.01915219452
L46: 0 | M46: 0 | N46: 0 | O46: 0 | P46: 0 | Q46: 0 | R46: 0 | S46: 0 | T46: 0 | U46: 0 | V46: 0 | W46: 0 | X46: 0 | Y46: 0 | Z46: 0 | AA46: 5.773 | AB46: 0.9968992324 | AC46: 0.003100767601 | AD46: 3.936 | AE46: 0.9808478055 | AF46: 0.01915219452
L47: 0 | M47: 0 | N47: 0 | O47: 0 | P47: 0 | Q47: 0 | R47: 0 | S47: 0 | T47: 0 | U47: 0 | V47: 0 | W47: 0 | X47: 0 | Y47: 0 | Z47: 0 | AA47: 5.773 | AB47: 0.9968992324 | AC47: 0.003100767601 | AD47: 3.936 | AE47: 0.9808478055 | AF47: 0.01915219452
L48: 0 | M48: 0 | N48: 0 | O48: 0 | P48: 0 | Q48: 0 | R48: 0 | S48: 0 | T48: 0 | U48: 0 | V48: 0 | W48: 0 | X48: 0 | Y48: 0 | Z48: 0 | AA48: 5.773 | AB48: 0.9968992324 | AC48: 0.003100767601 | AD48: 3.936 | AE48: 0.9808478055 | AF48: 0.01915219452
L49: 0 | M49: 0 | N49: 0 | O49: 0 | P49: 0 | Q49: 0 | R49: 0 | S49: 0 | T49: 0 | U49: 0 | V49: 0 | W49: 0 | X49: 0 | Y49: 0 | Z49: 0 | AA49: 5.773 | AB49: 0.9968992324 | AC49: 0.003100767601 | AD49: 3.936 | AE49: 0.9808478055 | AF49: 0.01915219452
L50: 0 | M50: 0 | N50: 0 | O50: 0 | P50: 0 | Q50: 0 | R50: 0 | S50: 0 | T50: 0 | U50: 0 | V50: 0 | W50: 0 | X50: 0 | Y50: 0 | Z50: 0 | AA50: 5.773 | AB50: 0.9968992324 | AC50: 0.003100767601 | AD50: 3.936 | AE50: 0.9808478055 | AF50: 0.01915219452
L51: 0 | M51: 0 | N51: 0 | O51: 0 | P51: 0 | Q51: 0 | R51: 0 | S51: 0 | T51: 0 | U51: 0 | V51: 0 | W51: 0 | X51: 0 | Y51: 0 | Z51: 0 | AA51: 5.773 | AB51: 0.9968992324 | AC51: 0.003100767601 | AD51: 3.936 | AE51: 0.9808478055 | AF51: 0.01915219452
L52: 0 | M52: 0 | N52: 0 | O52: 0 | P52: 0 | Q52: 0 | R52: 0 | S52: 0 | T52: 0 | U52: 0 | V52: 0 | W52: 0 | X52: 0 | Y52: 0 | Z52: 0 | AA52: 5.773 | AB52: 0.9968992324 | AC52: 0.003100767601 | AD52: 3.936 | AE52: 0.9808478055 | AF52: 0.01915219452
L53: 0 | M53: 0 | N53: 0 | O53: 0 | P53: 0 | Q53: 0 | R53: 0 | S53: 0 | T53: 0 | U53: 0 | V53: 0 | W53: 0 | X53: 0 | Y53: 0 | Z53: 0 | AA53: 5.773 | AB53: 0.9968992324 | AC53: 0.003100767601 | AD53: 3.936 | AE53: 0.9808478055 | AF53: 0.01915219452
L54: 0 | M54: 0 | N54: 0 | O54: 0 | P54: 0 | Q54: 0 | R54: 0 | S54: 0 | T54: 0 | U54: 0 | V54: 0 | W54: 0 | X54: 0 | Y54: 0 | Z54: 0 | AA54: 5.773 | AB54: 0.9968992324 | AC54: 0.003100767601 | AD54: 3.936 | AE54: 0.9808478055 | AF54: 0.01915219452
L55: 0 | M55: 0 | N55: 0 | O55: 0 | P55: 0 | Q55: 0 | R55: 0 | S55: 0 | T55: 0 | U55: 0 | V55: 0 | W55: 0 | X55: 0 | Y55: 0 | Z55: 0 | AA55: 5.773 | AB55: 0.9968992324 | AC55: 0.003100767601 | AD55: 3.936 | AE55: 0.9808478055 | AF55: 0.01915219452
L56: 0 | M56: 0 | N56: 0 | O56: 0 | P56: 0 | Q56: 0 | R56: 0 | S56: 0 | T56: 0 | U56: 0 | V56: 0 | W56: 0 | X56: 0 | Y56: 0 | Z56: 0 | AA56: 5.773 | AB56: 0.9968992324 | AC56: 0.003100767601 | AD56: 3.936 | AE56: 0.9808478055 | AF56: 0.01915219452
L57: 0 | M57: 0 | N57: 0 | O57: 0 | P57: 0 | Q57: 0 | R57: 0 | S57: 0 | T57: 0 | U57: 0 | V57: 0 | W57: 0 | X57: 0 | Y57: 0 | Z57: 0 | AA57: 5.773 | AB57: 0.9968992324 | AC57: 0.003100767601 | AD57: 3.936 | AE57: 0.9808478055 | AF57: 0.01915219452
L58: 0 | M58: 0 | N58: 0 | O58: 0 | P58: 0 | Q58: 0 | R58: 0 | S58: 0 | T58: 0 | U58: 0 | V58: 0 | W58: 0 | X58: 0 | Y58: 0 | Z58: 0 | AA58: 5.773 | AB58: 0.9968992324 | AC58: 0.003100767601 | AD58: 3.936 | AE58: 0.9808478055 | AF58: 0.01915219452
L59: 0 | M59: 0 | N59: 0 | O59: 0 | P59: 0 | Q59: 0 | R59: 0 | S59: 0 | T59: 0 | U59: 0 | V59: 0 | W59: 0 | X59: 0 | Y59: 0 | Z59: 0 | AA59: 5.773 | AB59: 0.9968992324 | AC59: 0.003100767601 | AD59: 3.936 | AE59: 0.9808478055 | AF59: 0.01915219452
L60: 0 | M60: 0 | N60: 0 | O60: 0 | P60: 0 | Q60: 0 | R60: 0 | S60: 0 | T60: 0 | U60: 0 | V60: 0 | W60: 0 | X60: 0 | Y60: 0 | Z60: 0 | AA60: 5.773 | AB60: 0.9968992324 | AC60: 0.003100767601 | AD60: 3.936 | AE60: 0.9808478055 | AF60: 0.01915219452
L61: 0 | M61: 0 | N61: 0 | O61: 0 | P61: 0 | Q61: 0 | R61: 0 | S61: 0 | T61: 0 | U61: 0 | V61: 0 | W61: 0 | X61: 0 | Y61: 0 | Z61: 0 | AA61: 5.773 | AB61: 0.9968992324 | AC61: 0.003100767601 | AD61: 3.936 | AE61: 0.9808478055 | AF61: 0.01915219452
L62: 0 | M62: 0 | N62: 0 | O62: 0 | P62: 0 | Q62: 0 | R62: 0 | S62: 0 | T62: 0 | U62: 0 | V62: 0 | W62: 0 | X62: 0 | Y62: 0 | Z62: 0 | AA62: 5.773 | AB62: 0.9968992324 | AC62: 0.003100767601 | AD62: 3.936 | AE62: 0.9808478055 | AF62: 0.01915219452
L63: 0 | M63: 0 | N63: 0 | O63: 0 | P63: 0 | Q63: 0 | R63: 0 | S63: 0 | T63: 0 | U63: 0 | V63: 0 | W63: 0 | X63: 0 | Y63: 0 | Z63: 0 | AA63: 5.773 | AB63: 0.9968992324 | AC63: 0.003100767601 | AD63: 3.936 | AE63: 0.9808478055 | AF63: 0.01915219452
L64: 0 | M64: 0 | N64: 0 | O64: 0 | P64: 0 | Q64: 0 | R64: 0 | S64: 0 | T64: 0 | U64: 0 | V64: 0 | W64: 0 | X64: 0 | Y64: 0 | Z64: 0 | AA64: 5.773 | AB64: 0.9968992324 | AC64: 0.003100767601 | AD64: 3.936 | AE64: 0.9808478055 | AF64: 0.01915219452
L65: 0 | M65: 0 | N65: 0 | O65: 0 | P65: 0 | Q65: 0 | R65: 0 | S65: 0 | T65: 0 | U65: 0 | V65: 0 | W65: 0 | X65: 0 | Y65: 0 | Z65: 0 | AA65: 5.773 | AB65: 0.9968992324 | AC65: 0.003100767601 | AD65: 3.936 | AE65: 0.9808478055 | AF65: 0.01915219452
L66: 0 | M66: 0 | N66: 0 | O66: 0 | P66: 0 | Q66: 0 | R66: 0 | S66: 0 | T66: 0 | U66: 0 | V66: 0 | W66: 0 | X66: 0 | Y66: 0 | Z66: 0 | AA66: 5.773 | AB66: 0.9968992324 | AC66: 0.003100767601 | AD66: 3.936 | AE66: 0.9808478055 | AF66: 0.01915219452
L67: 0 | M67: 0 | N67: 0 | O67: 0 | P67: 0 | Q67: 0 | R67: 0 | S67: 0 | T67: 0 | U67: 0 | V67: 0 | W67: 0 | X67: 0 | Y67: 0 | Z67: 0 | AA67: 5.773 | AB67: 0.9968992324 | AC67: 0.003100767601 | AD67: 3.936 | AE67: 0.9808478055 | AF67: 0.01915219452
L68: 0 | M68: 0 | N68: 0 | O68: 0 | P68: 0 | Q68: 0 | R68: 0 | S68: 0 | T68: 0 | U68: 0 | V68: 0 | W68: 0 | X68: 0 | Y68: 0 | Z68: 0 | AA68: 5.773 | AB68: 0.9968992324 | AC68: 0.003100767601 | AD68: 3.936 | AE68: 0.9808478055 | AF68: 0.01915219452
L69: =IF(E69=1,1,0) -> 0 | M69: =IF(E69=2,1,0) -> 0 | N69: =IF(F69=1,1,0) -> 0 | O69: =IF(F69=2,1,0) -> 0 | P69: =IF(G69=1,1,0) -> 0 | Q69: =IF(G69=2,1,0) -> 0 | R69: =IF(H69=1,1,0) -> 0 | S69: =IF(H69=2,1,0) -> 0 | T69: =IF(I69=1,1,0) -> 0 | U69: =IF(I69=2,1,0) -> 0 | V69: =IF(K69="A",1,0) -> 0 | W69: =IF(K69="B",1,0) -> 0 | X69: =IF(K69="C",1,0) -> 0 | Y69: =IF(K69="D",1,0) -> 0 | Z69: =IF(K69="E",1,0) -> 0 | AA69: =(-0.0296*T69)-(1.046*U69)-(1.34*P69)-(0.1562*Q69)-(1.051*R69)-(1.69*S69)-(1.153*N69)-(0.733*O69)+(2.867*V69)+(1.675*W69)+(1.031*X69)+(1.445*Y69)-(0.9243*Z69)-(0.371*C69)+5.773 -> 5.773 | AB69: =(EXP(AA69))/(1+(EXP(AA69))) -> 0.9968992324 | AC69: =1-AB69 -> 0.003100767601 | AD69: =(-0.416*L69)+(-0.9796*M69)+(0.06187*T69)+(-1.039*U69)+(-0.8492*P69)+(-1.698*Q69)+(-0.5815*R69)+(-1.828*S69)+(-0.768*N69)+(-0.9855*O69)+(1.345*V69)+(0.4466*W69)+(-0.797*X69)+(-0.3943*Y69)+(-3.606*Z69)+3.936 -> 3.936 | AE69: =(EXP(AD69))/(1+(EXP(AD69))) -> 0.9808478055 | AF69: =1-AE69 -> 0.01915219452 | AG69: =IF(A69="","",IF(C69="","",IF(J69<>0,"R",IF(B69<22,"R",IF(D69="SI","R",IF(AC69>AB69,"R","1ª-7ª")))))) ->  | AH69: =IF(A69="","",IF(J69<>0,"R",IF(B69<22,"R",IF(D69="SI","R",IF(AF69>AE69,"R","1ª-7ª"))))) -> 
L70: 0 | M70: 0 | N70: 0 | O70: 0 | P70: 0 | Q70: 0 | R70: 0 | S70: 0 | T70: 0 | U70: 0 | V70: 0 | W70: 0 | X70: 0 | Y70: 0 | Z70: 0 | AA70: 5.773 | AB70: 0.9968992324 | AC70: 0.003100767601 | AD70: 3.936 | AE70: 0.9808478055 | AF70: 0.01915219452
L71: 0 | M71: 0 | N71: 0 | O71: 0 | P71: 0 | Q71: 0 | R71: 0 | S71: 0 | T71: 0 | U71: 0 | V71: 0 | W71: 0 | X71: 0 | Y71: 0 | Z71: 0 | AA71: 5.773 | AB71: 0.9968992324 | AC71: 0.003100767601 | AD71: 3.936 | AE71: 0.9808478055 | AF71: 0.01915219452
L72: 0 | M72: 0 | N72: 0 | O72: 0 | P72: 0 | Q72: 0 | R72: 0 | S72: 0 | T72: 0 | U72: 0 | V72: 0 | W72: 0 | X72: 0 | Y72: 0 | Z72: 0 | AA72: 5.773 | AB72: 0.9968992324 | AC72: 0.003100767601 | AD72: 3.936 | AE72: 0.9808478055 | AF72: 0.01915219452
L73: 0 | M73: 0 | N73: 0 | O73: 0 | P73: 0 | Q73: 0 | R73: 0 | S73: 0 | T73: 0 | U73: 0 | V73: 0 | W73: 0 | X73: 0 | Y73: 0 | Z73: 0 | AA73: 5.773 | AB73: 0.9968992324 | AC73: 0.003100767601 | AD73: 3.936 | AE73: 0.9808478055 | AF73: 0.01915219452
L74: 0 | M74: 0 | N74: 0 | O74: 0 | P74: 0 | Q74: 0 | R74: 0 | S74: 0 | T74: 0 | U74: 0 | V74: 0 | W74: 0 | X74: 0 | Y74: 0 | Z74: 0 | AA74: 5.773 | AB74: 0.9968992324 | AC74: 0.003100767601 | AD74: 3.936 | AE74: 0.9808478055 | AF74: 0.01915219452
L75: 0 | M75: 0 | N75: 0 | O75: 0 | P75: 0 | Q75: 0 | R75: 0 | S75: 0 | T75: 0 | U75: 0 | V75: 0 | W75: 0 | X75: 0 | Y75: 0 | Z75: 0 | AA75: 5.773 | AB75: 0.9968992324 | AC75: 0.003100767601 | AD75: 3.936 | AE75: 0.9808478055 | AF75: 0.01915219452
L76: 0 | M76: 0 | N76: 0 | O76: 0 | P76: 0 | Q76: 0 | R76: 0 | S76: 0 | T76: 0 | U76: 0 | V76: 0 | W76: 0 | X76: 0 | Y76: 0 | Z76: 0 | AA76: 5.773 | AB76: 0.9968992324 | AC76: 0.003100767601 | AD76: 3.936 | AE76: 0.9808478055 | AF76: 0.01915219452
L77: 0 | M77: 0 | N77: 0 | O77: 0 | P77: 0 | Q77: 0 | R77: 0 | S77: 0 | T77: 0 | U77: 0 | V77: 0 | W77: 0 | X77: 0 | Y77: 0 | Z77: 0 | AA77: 5.773 | AB77: 0.9968992324 | AC77: 0.003100767601 | AD77: 3.936 | AE77: 0.9808478055 | AF77: 0.01915219452
L78: 0 | M78: 0 | N78: 0 | O78: 0 | P78: 0 | Q78: 0 | R78: 0 | S78: 0 | T78: 0 | U78: 0 | V78: 0 | W78: 0 | X78: 0 | Y78: 0 | Z78: 0 | AA78: 5.773 | AB78: 0.9968992324 | AC78: 0.003100767601 | AD78: 3.936 | AE78: 0.9808478055 | AF78: 0.01915219452
L79: 0 | M79: 0 | N79: 0 | O79: 0 | P79: 0 | Q79: 0 | R79: 0 | S79: 0 | T79: 0 | U79: 0 | V79: 0 | W79: 0 | X79: 0 | Y79: 0 | Z79: 0 | AA79: 5.773 | AB79: 0.9968992324 | AC79: 0.003100767601 | AD79: 3.936 | AE79: 0.9808478055 | AF79: 0.01915219452
L80: 0 | M80: 0 | N80: 0 | O80: 0 | P80: 0 | Q80: 0 | R80: 0 | S80: 0 | T80: 0 | U80: 0 | V80: 0 | W80: 0 | X80: 0 | Y80: 0 | Z80: 0 | AA80: 5.773 | AB80: 0.9968992324 | AC80: 0.003100767601 | AD80: 3.936 | AE80: 0.9808478055 | AF80: 0.01915219452
L81: 0 | M81: 0 | N81: 0 | O81: 0 | P81: 0 | Q81: 0 | R81: 0 | S81: 0 | T81: 0 | U81: 0 | V81: 0 | W81: 0 | X81: 0 | Y81: 0 | Z81: 0 | AA81: 5.773 | AB81: 0.9968992324 | AC81: 0.003100767601 | AD81: 3.936 | AE81: 0.9808478055 | AF81: 0.01915219452
L82: 0 | M82: 0 | N82: 0 | O82: 0 | P82: 0 | Q82: 0 | R82: 0 | S82: 0 | T82: 0 | U82: 0 | V82: 0 | W82: 0 | X82: 0 | Y82: 0 | Z82: 0 | AA82: 5.773 | AB82: 0.9968992324 | AC82: 0.003100767601 | AD82: 3.936 | AE82: 0.9808478055 | AF82: 0.01915219452
L83: 0 | M83: 0 | N83: 0 | O83: 0 | P83: 0 | Q83: 0 | R83: 0 | S83: 0 | T83: 0 | U83: 0 | V83: 0 | W83: 0 | X83: 0 | Y83: 0 | Z83: 0 | AA83: 5.773 | AB83: 0.9968992324 | AC83: 0.003100767601 | AD83: 3.936 | AE83: 0.9808478055 | AF83: 0.01915219452
L84: 0 | M84: 0 | N84: 0 | O84: 0 | P84: 0 | Q84: 0 | R84: 0 | S84: 0 | T84: 0 | U84: 0 | V84: 0 | W84: 0 | X84: 0 | Y84: 0 | Z84: 0 | AA84: 5.773 | AB84: 0.9968992324 | AC84: 0.003100767601 | AD84: 3.936 | AE84: 0.9808478055 | AF84: 0.01915219452
L85: 0 | M85: 0 | N85: 0 | O85: 0 | P85: 0 | Q85: 0 | R85: 0 | S85: 0 | T85: 0 | U85: 0 | V85: 0 | W85: 0 | X85: 0 | Y85: 0 | Z85: 0 | AA85: 5.773 | AB85: 0.9968992324 | AC85: 0.003100767601 | AD85: 3.936 | AE85: 0.9808478055 | AF85: 0.01915219452
L86: 0 | M86: 0 | N86: 0 | O86: 0 | P86: 0 | Q86: 0 | R86: 0 | S86: 0 | T86: 0 | U86: 0 | V86: 0 | W86: 0 | X86: 0 | Y86: 0 | Z86: 0 | AA86: 5.773 | AB86: 0.9968992324 | AC86: 0.003100767601 | AD86: 3.936 | AE86: 0.9808478055 | AF86: 0.01915219452
L87: 0 | M87: 0 | N87: 0 | O87: 0 | P87: 0 | Q87: 0 | R87: 0 | S87: 0 | T87: 0 | U87: 0 | V87: 0 | W87: 0 | X87: 0 | Y87: 0 | Z87: 0 | AA87: 5.773 | AB87: 0.9968992324 | AC87: 0.003100767601 | AD87: 3.936 | AE87: 0.9808478055 | AF87: 0.01915219452
L88: 0 | M88: 0 | N88: 0 | O88: 0 | P88: 0 | Q88: 0 | R88: 0 | S88: 0 | T88: 0 | U88: 0 | V88: 0 | W88: 0 | X88: 0 | Y88: 0 | Z88: 0 | AA88: 5.773 | AB88: 0.9968992324 | AC88: 0.003100767601 | AD88: 3.936 | AE88: 0.9808478055 | AF88: 0.01915219452
L89: 0 | M89: 0 | N89: 0 | O89: 0 | P89: 0 | Q89: 0 | R89: 0 | S89: 0 | T89: 0 | U89: 0 | V89: 0 | W89: 0 | X89: 0 | Y89: 0 | Z89: 0 | AA89: 5.773 | AB89: 0.9968992324 | AC89: 0.003100767601 | AD89: 3.936 | AE89: 0.9808478055 | AF89: 0.01915219452
L90: 0 | M90: 0 | N90: 0 | O90: 0 | P90: 0 | Q90: 0 | R90: 0 | S90: 0 | T90: 0 | U90: 0 | V90: 0 | W90: 0 | X90: 0 | Y90: 0 | Z90: 0 | AA90: 5.773 | AB90: 0.9968992324 | AC90: 0.003100767601 | AD90: 3.936 | AE90: 0.9808478055 | AF90: 0.01915219452
L91: 0 | M91: 0 | N91: 0 | O91: 0 | P91: 0 | Q91: 0 | R91: 0 | S91: 0 | T91: 0 | U91: 0 | V91: 0 | W91: 0 | X91: 0 | Y91: 0 | Z91: 0 | AA91: 5.773 | AB91: 0.9968992324 | AC91: 0.003100767601 | AD91: 3.936 | AE91: 0.9808478055 | AF91: 0.01915219452
L92: 0 | M92: 0 | N92: 0 | O92: 0 | P92: 0 | Q92: 0 | R92: 0 | S92: 0 | T92: 0 | U92: 0 | V92: 0 | W92: 0 | X92: 0 | Y92: 0 | Z92: 0 | AA92: 5.773 | AB92: 0.9968992324 | AC92: 0.003100767601 | AD92: 3.936 | AE92: 0.9808478055 | AF92: 0.01915219452
L93: 0 | M93: 0 | N93: 0 | O93: 0 | P93: 0 | Q93: 0 | R93: 0 | S93: 0 | T93: 0 | U93: 0 | V93: 0 | W93: 0 | X93: 0 | Y93: 0 | Z93: 0 | AA93: 5.773 | AB93: 0.9968992324 | AC93: 0.003100767601 | AD93: 3.936 | AE93: 0.9808478055 | AF93: 0.01915219452
L94: 0 | M94: 0 | N94: 0 | O94: 0 | P94: 0 | Q94: 0 | R94: 0 | S94: 0 | T94: 0 | U94: 0 | V94: 0 | W94: 0 | X94: 0 | Y94: 0 | Z94: 0 | AA94: 5.773 | AB94: 0.9968992324 | AC94: 0.003100767601 | AD94: 3.936 | AE94: 0.9808478055 | AF94: 0.01915219452
L95: 0 | M95: 0 | N95: 0 | O95: 0 | P95: 0 | Q95: 0 | R95: 0 | S95: 0 | T95: 0 | U95: 0 | V95: 0 | W95: 0 | X95: 0 | Y95: 0 | Z95: 0 | AA95: 5.773 | AB95: 0.9968992324 | AC95: 0.003100767601 | AD95: 3.936 | AE95: 0.9808478055 | AF95: 0.01915219452
L96: 0 | M96: 0 | N96: 0 | O96: 0 | P96: 0 | Q96: 0 | R96: 0 | S96: 0 | T96: 0 | U96: 0 | V96: 0 | W96: 0 | X96: 0 | Y96: 0 | Z96: 0 | AA96: 5.773 | AB96: 0.9968992324 | AC96: 0.003100767601 | AD96: 3.936 | AE96: 0.9808478055 | AF96: 0.01915219452
L97: 0 | M97: 0 | N97: 0 | O97: 0 | P97: 0 | Q97: 0 | R97: 0 | S97: 0 | T97: 0 | U97: 0 | V97: 0 | W97: 0 | X97: 0 | Y97: 0 | Z97: 0 | AA97: 5.773 | AB97: 0.9968992324 | AC97: 0.003100767601 | AD97: 3.936 | AE97: 0.9808478055 | AF97: 0.01915219452
L98: 0 | M98: 0 | N98: 0 | O98: 0 | P98: 0 | Q98: 0 | R98: 0 | S98: 0 | T98: 0 | U98: 0 | V98: 0 | W98: 0 | X98: 0 | Y98: 0 | Z98: 0 | AA98: 5.773 | AB98: 0.9968992324 | AC98: 0.003100767601 | AD98: 3.936 | AE98: 0.9808478055 | AF98: 0.01915219452
L99: 0 | M99: 0 | N99: 0 | O99: 0 | P99: 0 | Q99: 0 | R99: 0 | S99: 0 | T99: 0 | U99: 0 | V99: 0 | W99: 0 | X99: 0 | Y99: 0 | Z99: 0 | AA99: 5.773 | AB99: 0.9968992324 | AC99: 0.003100767601 | AD99: 3.936 | AE99: 0.9808478055 | AF99: 0.01915219452
L100: 0 | M100: 0 | N100: 0 | O100: 0 | P100: 0 | Q100: 0 | R100: 0 | S100: 0 | T100: 0 | U100: 0 | V100: 0 | W100: 0 | X100: 0 | Y100: 0 | Z100: 0 | AA100: 5.773 | AB100: 0.9968992324 | AC100: 0.003100767601 | AD100: 3.936 | AE100: 0.9808478055 | AF100: 0.01915219452
L101: 0 | M101: 0 | N101: 0 | O101: 0 | P101: 0 | Q101: 0 | R101: 0 | S101: 0 | T101: 0 | U101: 0 | V101: 0 | W101: 0 | X101: 0 | Y101: 0 | Z101: 0 | AA101: 5.773 | AB101: 0.9968992324 | AC101: 0.003100767601 | AD101: 3.936 | AE101: 0.9808478055 | AF101: 0.01915219452
L102: 0 | M102: 0 | N102: 0 | O102: 0 | P102: 0 | Q102: 0 | R102: 0 | S102: 0 | T102: 0 | U102: 0 | V102: 0 | W102: 0 | X102: 0 | Y102: 0 | Z102: 0 | AA102: 5.773 | AB102: 0.9968992324 | AC102: 0.003100767601 | AD102: 3.936 | AE102: 0.9808478055 | AF102: 0.01915219452
L103: 0 | M103: 0 | N103: 0 | O103: 0 | P103: 0 | Q103: 0 | R103: 0 | S103: 0 | T103: 0 | U103: 0 | V103: 0 | W103: 0 | X103: 0 | Y103: 0 | Z103: 0 | AA103: 5.773 | AB103: 0.9968992324 | AC103: 0.003100767601 | AD103: 3.936 | AE103: 0.9808478055 | AF103: 0.01915219452
L104: 0 | M104: 0 | N104: 0 | O104: 0 | P104: 0 | Q104: 0 | R104: 0 | S104: 0 | T104: 0 | U104: 0 | V104: 0 | W104: 0 | X104: 0 | Y104: 0 | Z104: 0 | AA104: 5.773 | AB104: 0.9968992324 | AC104: 0.003100767601 | AD104: 3.936 | AE104: 0.9808478055 | AF104: 0.01915219452
L105: 0 | M105: 0 | N105: 0 | O105: 0 | P105: 0 | Q105: 0 | R105: 0 | S105: 0 | T105: 0 | U105: 0 | V105: 0 | W105: 0 | X105: 0 | Y105: 0 | Z105: 0 | AA105: 5.773 | AB105: 0.9968992324 | AC105: 0.003100767601 | AD105: 3.936 | AE105: 0.9808478055 | AF105: 0.01915219452
L106: 0 | M106: 0 | N106: 0 | O106: 0 | P106: 0 | Q106: 0 | R106: 0 | S106: 0 | T106: 0 | U106: 0 | V106: 0 | W106: 0 | X106: 0 | Y106: 0 | Z106: 0 | AA106: 5.773 | AB106: 0.9968992324 | AC106: 0.003100767601 | AD106: 3.936 | AE106: 0.9808478055 | AF106: 0.01915219452
L107: 0 | M107: 0 | N107: 0 | O107: 0 | P107: 0 | Q107: 0 | R107: 0 | S107: 0 | T107: 0 | U107: 0 | V107: 0 | W107: 0 | X107: 0 | Y107: 0 | Z107: 0 | AA107: 5.773 | AB107: 0.9968992324 | AC107: 0.003100767601 | AD107: 3.936 | AE107: 0.9808478055 | AF107: 0.01915219452
L108: 0 | M108: 0 | N108: 0 | O108: 0 | P108: 0 | Q108: 0 | R108: 0 | S108: 0 | T108: 0 | U108: 0 | V108: 0 | W108: 0 | X108: 0 | Y108: 0 | Z108: 0 | AA108: 5.773 | AB108: 0.9968992324 | AC108: 0.003100767601 | AD108: 3.936 | AE108: 0.9808478055 | AF108: 0.01915219452
L109: 0 | M109: 0 | N109: 0 | O109: 0 | P109: 0 | Q109: 0 | R109: 0 | S109: 0 | T109: 0 | U109: 0 | V109: 0 | W109: 0 | X109: 0 | Y109: 0 | Z109: 0 | AA109: 5.773 | AB109: 0.9968992324 | AC109: 0.003100767601 | AD109: 3.936 | AE109: 0.9808478055 | AF109: 0.01915219452
L110: 0 | M110: 0 | N110: 0 | O110: 0 | P110: 0 | Q110: 0 | R110: 0 | S110: 0 | T110: 0 | U110: 0 | V110: 0 | W110: 0 | X110: 0 | Y110: 0 | Z110: 0 | AA110: 5.773 | AB110: 0.9968992324 | AC110: 0.003100767601 | AD110: 3.936 | AE110: 0.9808478055 | AF110: 0.01915219452
L111: 0 | M111: 0 | N111: 0 | O111: 0 | P111: 0 | Q111: 0 | R111: 0 | S111: 0 | T111: 0 | U111: 0 | V111: 0 | W111: 0 | X111: 0 | Y111: 0 | Z111: 0 | AA111: 5.773 | AB111: 0.9968992324 | AC111: 0.003100767601 | AD111: 3.936 | AE111: 0.9808478055 | AF111: 0.01915219452
L112: 0 | M112: 0 | N112: 0 | O112: 0 | P112: 0 | Q112: 0 | R112: 0 | S112: 0 | T112: 0 | U112: 0 | V112: 0 | W112: 0 | X112: 0 | Y112: 0 | Z112: 0 | AA112: 5.773 | AB112: 0.9968992324 | AC112: 0.003100767601 | AD112: 3.936 | AE112: 0.9808478055 | AF112: 0.01915219452
L113: 0 | M113: 0 | N113: 0 | O113: 0 | P113: 0 | Q113: 0 | R113: 0 | S113: 0 | T113: 0 | U113: 0 | V113: 0 | W113: 0 | X113: 0 | Y113: 0 | Z113: 0 | AA113: 5.773 | AB113: 0.9968992324 | AC113: 0.003100767601 | AD113: 3.936 | AE113: 0.9808478055 | AF113: 0.01915219452
L114: 0 | M114: 0 | N114: 0 | O114: 0 | P114: 0 | Q114: 0 | R114: 0 | S114: 0 | T114: 0 | U114: 0 | V114: 0 | W114: 0 | X114: 0 | Y114: 0 | Z114: 0 | AA114: 5.773 | AB114: 0.9968992324 | AC114: 0.003100767601 | AD114: 3.936 | AE114: 0.9808478055 | AF114: 0.01915219452
L115: 0 | M115: 0 | N115: 0 | O115: 0 | P115: 0 | Q115: 0 | R115: 0 | S115: 0 | T115: 0 | U115: 0 | V115: 0 | W115: 0 | X115: 0 | Y115: 0 | Z115: 0 | AA115: 5.773 | AB115: 0.9968992324 | AC115: 0.003100767601 | AD115: 3.936 | AE115: 0.9808478055 | AF115: 0.01915219452
L116: 0 | M116: 0 | N116: 0 | O116: 0 | P116: 0 | Q116: 0 | R116: 0 | S116: 0 | T116: 0 | U116: 0 | V116: 0 | W116: 0 | X116: 0 | Y116: 0 | Z116: 0 | AA116: 5.773 | AB116: 0.9968992324 | AC116: 0.003100767601 | AD116: 3.936 | AE116: 0.9808478055 | AF116: 0.01915219452
L117: 0 | M117: 0 | N117: 0 | O117: 0 | P117: 0 | Q117: 0 | R117: 0 | S117: 0 | T117: 0 | U117: 0 | V117: 0 | W117: 0 | X117: 0 | Y117: 0 | Z117: 0 | AA117: 5.773 | AB117: 0.9968992324 | AC117: 0.003100767601 | AD117: 3.936 | AE117: 0.9808478055 | AF117: 0.01915219452
L118: 0 | M118: 0 | N118: 0 | O118: 0 | P118: 0 | Q118: 0 | R118: 0 | S118: 0 | T118: 0 | U118: 0 | V118: 0 | W118: 0 | X118: 0 | Y118: 0 | Z118: 0 | AA118: 5.773 | AB118: 0.9968992324 | AC118: 0.003100767601 | AD118: 3.936 | AE118: 0.9808478055 | AF118: 0.01915219452
L119: 0 | M119: 0 | N119: 0 | O119: 0 | P119: 0 | Q119: 0 | R119: 0 | S119: 0 | T119: 0 | U119: 0 | V119: 0 | W119: 0 | X119: 0 | Y119: 0 | Z119: 0 | AA119: 5.773 | AB119: 0.9968992324 | AC119: 0.003100767601 | AD119: 3.936 | AE119: 0.9808478055 | AF119: 0.01915219452
L120: 0 | M120: 0 | N120: 0 | O120: 0 | P120: 0 | Q120: 0 | R120: 0 | S120: 0 | T120: 0 | U120: 0 | V120: 0 | W120: 0 | X120: 0 | Y120: 0 | Z120: 0 | AA120: 5.773 | AB120: 0.9968992324 | AC120: 0.003100767601 | AD120: 3.936 | AE120: 0.9808478055 | AF120: 0.01915219452
L121: 0 | M121: 0 | N121: 0 | O121: 0 | P121: 0 | Q121: 0 | R121: 0 | S121: 0 | T121: 0 | U121: 0 | V121: 0 | W121: 0 | X121: 0 | Y121: 0 | Z121: 0 | AA121: 5.773 | AB121: 0.9968992324 | AC121: 0.003100767601 | AD121: 3.936 | AE121: 0.9808478055 | AF121: 0.01915219452
L122: 0 | M122: 0 | N122: 0 | O122: 0 | P122: 0 | Q122: 0 | R122: 0 | S122: 0 | T122: 0 | U122: 0 | V122: 0 | W122: 0 | X122: 0 | Y122: 0 | Z122: 0 | AA122: 5.773 | AB122: 0.9968992324 | AC122: 0.003100767601 | AD122: 3.936 | AE122: 0.9808478055 | AF122: 0.01915219452
L123: 0 | M123: 0 | N123: 0 | O123: 0 | P123: 0 | Q123: 0 | R123: 0 | S123: 0 | T123: 0 | U123: 0 | V123: 0 | W123: 0 | X123: 0 | Y123: 0 | Z123: 0 | AA123: 5.773 | AB123: 0.9968992324 | AC123: 0.003100767601 | AD123: 3.936 | AE123: 0.9808478055 | AF123: 0.01915219452
L124: 0 | M124: 0 | N124: 0 | O124: 0 | P124: 0 | Q124: 0 | R124: 0 | S124: 0 | T124: 0 | U124: 0 | V124: 0 | W124: 0 | X124: 0 | Y124: 0 | Z124: 0 | AA124: 5.773 | AB124: 0.9968992324 | AC124: 0.003100767601 | AD124: 3.936 | AE124: 0.9808478055 | AF124: 0.01915219452
L125: 0 | M125: 0 | N125: 0 | O125: 0 | P125: 0 | Q125: 0 | R125: 0 | S125: 0 | T125: 0 | U125: 0 | V125: 0 | W125: 0 | X125: 0 | Y125: 0 | Z125: 0 | AA125: 5.773 | AB125: 0.9968992324 | AC125: 0.003100767601 | AD125: 3.936 | AE125: 0.9808478055 | AF125: 0.01915219452
L126: 0 | M126: 0 | N126: 0 | O126: 0 | P126: 0 | Q126: 0 | R126: 0 | S126: 0 | T126: 0 | U126: 0 | V126: 0 | W126: 0 | X126: 0 | Y126: 0 | Z126: 0 | AA126: 5.773 | AB126: 0.9968992324 | AC126: 0.003100767601 | AD126: 3.936 | AE126: 0.9808478055 | AF126: 0.01915219452
L127: 0 | M127: 0 | N127: 0 | O127: 0 | P127: 0 | Q127: 0 | R127: 0 | S127: 0 | T127: 0 | U127: 0 | V127: 0 | W127: 0 | X127: 0 | Y127: 0 | Z127: 0 | AA127: 5.773 | AB127: 0.9968992324 | AC127: 0.003100767601 | AD127: 3.936 | AE127: 0.9808478055 | AF127: 0.01915219452
L128: 0 | M128: 0 | N128: 0 | O128: 0 | P128: 0 | Q128: 0 | R128: 0 | S128: 0 | T128: 0 | U128: 0 | V128: 0 | W128: 0 | X128: 0 | Y128: 0 | Z128: 0 | AA128: 5.773 | AB128: 0.9968992324 | AC128: 0.003100767601 | AD128: 3.936 | AE128: 0.9808478055 | AF128: 0.01915219452
L129: 0 | M129: 0 | N129: 0 | O129: 0 | P129: 0 | Q129: 0 | R129: 0 | S129: 0 | T129: 0 | U129: 0 | V129: 0 | W129: 0 | X129: 0 | Y129: 0 | Z129: 0 | AA129: 5.773 | AB129: 0.9968992324 | AC129: 0.003100767601 | AD129: 3.936 | AE129: 0.9808478055 | AF129: 0.01915219452
L130: 0 | M130: 0 | N130: 0 | O130: 0 | P130: 0 | Q130: 0 | R130: 0 | S130: 0 | T130: 0 | U130: 0 | V130: 0 | W130: 0 | X130: 0 | Y130: 0 | Z130: 0 | AA130: 5.773 | AB130: 0.9968992324 | AC130: 0.003100767601 | AD130: 3.936 | AE130: 0.9808478055 | AF130: 0.01915219452
L131: 0 | M131: 0 | N131: 0 | O131: 0 | P131: 0 | Q131: 0 | R131: 0 | S131: 0 | T131: 0 | U131: 0 | V131: 0 | W131: 0 | X131: 0 | Y131: 0 | Z131: 0 | AA131: 5.773 | AB131: 0.9968992324 | AC131: 0.003100767601 | AD131: 3.936 | AE131: 0.9808478055 | AF131: 0.01915219452
L132: 0 | M132: 0 | N132: 0 | O132: 0 | P132: 0 | Q132: 0 | R132: 0 | S132: 0 | T132: 0 | U132: 0 | V132: 0 | W132: 0 | X132: 0 | Y132: 0 | Z132: 0 | AA132: 5.773 | AB132: 0.9968992324 | AC132: 0.003100767601 | AD132: 3.936 | AE132: 0.9808478055 | AF132: 0.01915219452
L133: =IF(E133=1,1,0) -> 0 | M133: =IF(E133=2,1,0) -> 0 | N133: =IF(F133=1,1,0) -> 0 | O133: =IF(F133=2,1,0) -> 0 | P133: =IF(G133=1,1,0) -> 0 | Q133: =IF(G133=2,1,0) -> 0 | R133: =IF(H133=1,1,0) -> 0 | S133: =IF(H133=2,1,0) -> 0 | T133: =IF(I133=1,1,0) -> 0 | U133: =IF(I133=2,1,0) -> 0 | V133: =IF(K133="A",1,0) -> 0 | W133: =IF(K133="B",1,0) -> 0 | X133: =IF(K133="C",1,0) -> 0 | Y133: =IF(K133="D",1,0) -> 0 | Z133: =IF(K133="E",1,0) -> 0 | AA133: =(-0.0296*T133)-(1.046*U133)-(1.34*P133)-(0.1562*Q133)-(1.051*R133)-(1.69*S133)-(1.153*N133)-(0.733*O133)+(2.867*V133)+(1.675*W133)+(1.031*X133)+(1.445*Y133)-(0.9243*Z133)-(0.371*C133)+5.773 -> 5.773 | AB133: =(EXP(AA133))/(1+(EXP(AA133))) -> 0.9968992324 | AC133: =1-AB133 -> 0.003100767601 | AD133: =(-0.416*L133)+(-0.9796*M133)+(0.06187*T133)+(-1.039*U133)+(-0.8492*P133)+(-1.698*Q133)+(-0.5815*R133)+(-1.828*S133)+(-0.768*N133)+(-0.9855*O133)+(1.345*V133)+(0.4466*W133)+(-0.797*X133)+(-0.3943*Y133)+(-3.606*Z133)+3.936 -> 3.936 | AE133: =(EXP(AD133))/(1+(EXP(AD133))) -> 0.9808478055 | AF133: =1-AE133 -> 0.01915219452 | AG133: =IF(A133="","",IF(C133="","",IF(J133<>0,"R",IF(B133<22,"R",IF(D133="SI","R",IF(AC133>AB133,"R","1ª-7ª")))))) ->  | AH133: =IF(A133="","",IF(J133<>0,"R",IF(B133<22,"R",IF(D133="SI","R",IF(AF133>AE133,"R","1ª-7ª"))))) -> 
L134: 0 | M134: 0 | N134: 0 | O134: 0 | P134: 0 | Q134: 0 | R134: 0 | S134: 0 | T134: 0 | U134: 0 | V134: 0 | W134: 0 | X134: 0 | Y134: 0 | Z134: 0 | AA134: 5.773 | AB134: 0.9968992324 | AC134: 0.003100767601 | AD134: 3.936 | AE134: 0.9808478055 | AF134: 0.01915219452
L135: 0 | M135: 0 | N135: 0 | O135: 0 | P135: 0 | Q135: 0 | R135: 0 | S135: 0 | T135: 0 | U135: 0 | V135: 0 | W135: 0 | X135: 0 | Y135: 0 | Z135: 0 | AA135: 5.773 | AB135: 0.9968992324 | AC135: 0.003100767601 | AD135: 3.936 | AE135: 0.9808478055 | AF135: 0.01915219452
L136: 0 | M136: 0 | N136: 0 | O136: 0 | P136: 0 | Q136: 0 | R136: 0 | S136: 0 | T136: 0 | U136: 0 | V136: 0 | W136: 0 | X136: 0 | Y136: 0 | Z136: 0 | AA136: 5.773 | AB136: 0.9968992324 | AC136: 0.003100767601 | AD136: 3.936 | AE136: 0.9808478055 | AF136: 0.01915219452
L137: 0 | M137: 0 | N137: 0 | O137: 0 | P137: 0 | Q137: 0 | R137: 0 | S137: 0 | T137: 0 | U137: 0 | V137: 0 | W137: 0 | X137: 0 | Y137: 0 | Z137: 0 | AA137: 5.773 | AB137: 0.9968992324 | AC137: 0.003100767601 | AD137: 3.936 | AE137: 0.9808478055 | AF137: 0.01915219452
L138: 0 | M138: 0 | N138: 0 | O138: 0 | P138: 0 | Q138: 0 | R138: 0 | S138: 0 | T138: 0 | U138: 0 | V138: 0 | W138: 0 | X138: 0 | Y138: 0 | Z138: 0 | AA138: 5.773 | AB138: 0.9968992324 | AC138: 0.003100767601 | AD138: 3.936 | AE138: 0.9808478055 | AF138: 0.01915219452
L139: 0 | M139: 0 | N139: 0 | O139: 0 | P139: 0 | Q139: 0 | R139: 0 | S139: 0 | T139: 0 | U139: 0 | V139: 0 | W139: 0 | X139: 0 | Y139: 0 | Z139: 0 | AA139: 5.773 | AB139: 0.9968992324 | AC139: 0.003100767601 | AD139: 3.936 | AE139: 0.9808478055 | AF139: 0.01915219452
L140: 0 | M140: 0 | N140: 0 | O140: 0 | P140: 0 | Q140: 0 | R140: 0 | S140: 0 | T140: 0 | U140: 0 | V140: 0 | W140: 0 | X140: 0 | Y140: 0 | Z140: 0 | AA140: 5.773 | AB140: 0.9968992324 | AC140: 0.003100767601 | AD140: 3.936 | AE140: 0.9808478055 | AF140: 0.01915219452
L141: 0 | M141: 0 | N141: 0 | O141: 0 | P141: 0 | Q141: 0 | R141: 0 | S141: 0 | T141: 0 | U141: 0 | V141: 0 | W141: 0 | X141: 0 | Y141: 0 | Z141: 0 | AA141: 5.773 | AB141: 0.9968992324 | AC141: 0.003100767601 | AD141: 3.936 | AE141: 0.9808478055 | AF141: 0.01915219452
L142: 0 | M142: 0 | N142: 0 | O142: 0 | P142: 0 | Q142: 0 | R142: 0 | S142: 0 | T142: 0 | U142: 0 | V142: 0 | W142: 0 | X142: 0 | Y142: 0 | Z142: 0 | AA142: 5.773 | AB142: 0.9968992324 | AC142: 0.003100767601 | AD142: 3.936 | AE142: 0.9808478055 | AF142: 0.01915219452
L143: 0 | M143: 0 | N143: 0 | O143: 0 | P143: 0 | Q143: 0 | R143: 0 | S143: 0 | T143: 0 | U143: 0 | V143: 0 | W143: 0 | X143: 0 | Y143: 0 | Z143: 0 | AA143: 5.773 | AB143: 0.9968992324 | AC143: 0.003100767601 | AD143: 3.936 | AE143: 0.9808478055 | AF143: 0.01915219452
L144: 0 | M144: 0 | N144: 0 | O144: 0 | P144: 0 | Q144: 0 | R144: 0 | S144: 0 | T144: 0 | U144: 0 | V144: 0 | W144: 0 | X144: 0 | Y144: 0 | Z144: 0 | AA144: 5.773 | AB144: 0.9968992324 | AC144: 0.003100767601 | AD144: 3.936 | AE144: 0.9808478055 | AF144: 0.01915219452
L145: 0 | M145: 0 | N145: 0 | O145: 0 | P145: 0 | Q145: 0 | R145: 0 | S145: 0 | T145: 0 | U145: 0 | V145: 0 | W145: 0 | X145: 0 | Y145: 0 | Z145: 0 | AA145: 5.773 | AB145: 0.9968992324 | AC145: 0.003100767601 | AD145: 3.936 | AE145: 0.9808478055 | AF145: 0.01915219452
L146: 0 | M146: 0 | N146: 0 | O146: 0 | P146: 0 | Q146: 0 | R146: 0 | S146: 0 | T146: 0 | U146: 0 | V146: 0 | W146: 0 | X146: 0 | Y146: 0 | Z146: 0 | AA146: 5.773 | AB146: 0.9968992324 | AC146: 0.003100767601 | AD146: 3.936 | AE146: 0.9808478055 | AF146: 0.01915219452
L147: 0 | M147: 0 | N147: 0 | O147: 0 | P147: 0 | Q147: 0 | R147: 0 | S147: 0 | T147: 0 | U147: 0 | V147: 0 | W147: 0 | X147: 0 | Y147: 0 | Z147: 0 | AA147: 5.773 | AB147: 0.9968992324 | AC147: 0.003100767601 | AD147: 3.936 | AE147: 0.9808478055 | AF147: 0.01915219452
L148: 0 | M148: 0 | N148: 0 | O148: 0 | P148: 0 | Q148: 0 | R148: 0 | S148: 0 | T148: 0 | U148: 0 | V148: 0 | W148: 0 | X148: 0 | Y148: 0 | Z148: 0 | AA148: 5.773 | AB148: 0.9968992324 | AC148: 0.003100767601 | AD148: 3.936 | AE148: 0.9808478055 | AF148: 0.01915219452
L149: 0 | M149: 0 | N149: 0 | O149: 0 | P149: 0 | Q149: 0 | R149: 0 | S149: 0 | T149: 0 | U149: 0 | V149: 0 | W149: 0 | X149: 0 | Y149: 0 | Z149: 0 | AA149: 5.773 | AB149: 0.9968992324 | AC149: 0.003100767601 | AD149: 3.936 | AE149: 0.9808478055 | AF149: 0.01915219452
L150: 0 | M150: 0 | N150: 0 | O150: 0 | P150: 0 | Q150: 0 | R150: 0 | S150: 0 | T150: 0 | U150: 0 | V150: 0 | W150: 0 | X150: 0 | Y150: 0 | Z150: 0 | AA150: 5.773 | AB150: 0.9968992324 | AC150: 0.003100767601 | AD150: 3.936 | AE150: 0.9808478055 | AF150: 0.01915219452
L151: 0 | M151: 0 | N151: 0 | O151: 0 | P151: 0 | Q151: 0 | R151: 0 | S151: 0 | T151: 0 | U151: 0 | V151: 0 | W151: 0 | X151: 0 | Y151: 0 | Z151: 0 | AA151: 5.773 | AB151: 0.9968992324 | AC151: 0.003100767601 | AD151: 3.936 | AE151: 0.9808478055 | AF151: 0.01915219452
L152: 0 | M152: 0 | N152: 0 | O152: 0 | P152: 0 | Q152: 0 | R152: 0 | S152: 0 | T152: 0 | U152: 0 | V152: 0 | W152: 0 | X152: 0 | Y152: 0 | Z152: 0 | AA152: 5.773 | AB152: 0.9968992324 | AC152: 0.003100767601 | AD152: 3.936 | AE152: 0.9808478055 | AF152: 0.01915219452
L153: 0 | M153: 0 | N153: 0 | O153: 0 | P153: 0 | Q153: 0 | R153: 0 | S153: 0 | T153: 0 | U153: 0 | V153: 0 | W153: 0 | X153: 0 | Y153: 0 | Z153: 0 | AA153: 5.773 | AB153: 0.9968992324 | AC153: 0.003100767601 | AD153: 3.936 | AE153: 0.9808478055 | AF153: 0.01915219452
L154: 0 | M154: 0 | N154: 0 | O154: 0 | P154: 0 | Q154: 0 | R154: 0 | S154: 0 | T154: 0 | U154: 0 | V154: 0 | W154: 0 | X154: 0 | Y154: 0 | Z154: 0 | AA154: 5.773 | AB154: 0.9968992324 | AC154: 0.003100767601 | AD154: 3.936 | AE154: 0.9808478055 | AF154: 0.01915219452
L155: 0 | M155: 0 | N155: 0 | O155: 0 | P155: 0 | Q155: 0 | R155: 0 | S155: 0 | T155: 0 | U155: 0 | V155: 0 | W155: 0 | X155: 0 | Y155: 0 | Z155: 0 | AA155: 5.773 | AB155: 0.9968992324 | AC155: 0.003100767601 | AD155: 3.936 | AE155: 0.9808478055 | AF155: 0.01915219452
L156: 0 | M156: 0 | N156: 0 | O156: 0 | P156: 0 | Q156: 0 | R156: 0 | S156: 0 | T156: 0 | U156: 0 | V156: 0 | W156: 0 | X156: 0 | Y156: 0 | Z156: 0 | AA156: 5.773 | AB156: 0.9968992324 | AC156: 0.003100767601 | AD156: 3.936 | AE156: 0.9808478055 | AF156: 0.01915219452
L157: 0 | M157: 0 | N157: 0 | O157: 0 | P157: 0 | Q157: 0 | R157: 0 | S157: 0 | T157: 0 | U157: 0 | V157: 0 | W157: 0 | X157: 0 | Y157: 0 | Z157: 0 | AA157: 5.773 | AB157: 0.9968992324 | AC157: 0.003100767601 | AD157: 3.936 | AE157: 0.9808478055 | AF157: 0.01915219452
L158: 0 | M158: 0 | N158: 0 | O158: 0 | P158: 0 | Q158: 0 | R158: 0 | S158: 0 | T158: 0 | U158: 0 | V158: 0 | W158: 0 | X158: 0 | Y158: 0 | Z158: 0 | AA158: 5.773 | AB158: 0.9968992324 | AC158: 0.003100767601 | AD158: 3.936 | AE158: 0.9808478055 | AF158: 0.01915219452
L159: 0 | M159: 0 | N159: 0 | O159: 0 | P159: 0 | Q159: 0 | R159: 0 | S159: 0 | T159: 0 | U159: 0 | V159: 0 | W159: 0 | X159: 0 | Y159: 0 | Z159: 0 | AA159: 5.773 | AB159: 0.9968992324 | AC159: 0.003100767601 | AD159: 3.936 | AE159: 0.9808478055 | AF159: 0.01915219452
L160: 0 | M160: 0 | N160: 0 | O160: 0 | P160: 0 | Q160: 0 | R160: 0 | S160: 0 | T160: 0 | U160: 0 | V160: 0 | W160: 0 | X160: 0 | Y160: 0 | Z160: 0 | AA160: 5.773 | AB160: 0.9968992324 | AC160: 0.003100767601 | AD160: 3.936 | AE160: 0.9808478055 | AF160: 0.01915219452
L161: 0 | M161: 0 | N161: 0 | O161: 0 | P161: 0 | Q161: 0 | R161: 0 | S161: 0 | T161: 0 | U161: 0 | V161: 0 | W161: 0 | X161: 0 | Y161: 0 | Z161: 0 | AA161: 5.773 | AB161: 0.9968992324 | AC161: 0.003100767601 | AD161: 3.936 | AE161: 0.9808478055 | AF161: 0.01915219452
L162: 0 | M162: 0 | N162: 0 | O162: 0 | P162: 0 | Q162: 0 | R162: 0 | S162: 0 | T162: 0 | U162: 0 | V162: 0 | W162: 0 | X162: 0 | Y162: 0 | Z162: 0 | AA162: 5.773 | AB162: 0.9968992324 | AC162: 0.003100767601 | AD162: 3.936 | AE162: 0.9808478055 | AF162: 0.01915219452
L163: 0 | M163: 0 | N163: 0 | O163: 0 | P163: 0 | Q163: 0 | R163: 0 | S163: 0 | T163: 0 | U163: 0 | V163: 0 | W163: 0 | X163: 0 | Y163: 0 | Z163: 0 | AA163: 5.773 | AB163: 0.9968992324 | AC163: 0.003100767601 | AD163: 3.936 | AE163: 0.9808478055 | AF163: 0.01915219452
L164: 0 | M164: 0 | N164: 0 | O164: 0 | P164: 0 | Q164: 0 | R164: 0 | S164: 0 | T164: 0 | U164: 0 | V164: 0 | W164: 0 | X164: 0 | Y164: 0 | Z164: 0 | AA164: 5.773 | AB164: 0.9968992324 | AC164: 0.003100767601 | AD164: 3.936 | AE164: 0.9808478055 | AF164: 0.01915219452
L165: 0 | M165: 0 | N165: 0 | O165: 0 | P165: 0 | Q165: 0 | R165: 0 | S165: 0 | T165: 0 | U165: 0 | V165: 0 | W165: 0 | X165: 0 | Y165: 0 | Z165: 0 | AA165: 5.773 | AB165: 0.9968992324 | AC165: 0.003100767601 | AD165: 3.936 | AE165: 0.9808478055 | AF165: 0.01915219452
L166: 0 | M166: 0 | N166: 0 | O166: 0 | P166: 0 | Q166: 0 | R166: 0 | S166: 0 | T166: 0 | U166: 0 | V166: 0 | W166: 0 | X166: 0 | Y166: 0 | Z166: 0 | AA166: 5.773 | AB166: 0.9968992324 | AC166: 0.003100767601 | AD166: 3.936 | AE166: 0.9808478055 | AF166: 0.01915219452
L167: 0 | M167: 0 | N167: 0 | O167: 0 | P167: 0 | Q167: 0 | R167: 0 | S167: 0 | T167: 0 | U167: 0 | V167: 0 | W167: 0 | X167: 0 | Y167: 0 | Z167: 0 | AA167: 5.773 | AB167: 0.9968992324 | AC167: 0.003100767601 | AD167: 3.936 | AE167: 0.9808478055 | AF167: 0.01915219452
L168: 0 | M168: 0 | N168: 0 | O168: 0 | P168: 0 | Q168: 0 | R168: 0 | S168: 0 | T168: 0 | U168: 0 | V168: 0 | W168: 0 | X168: 0 | Y168: 0 | Z168: 0 | AA168: 5.773 | AB168: 0.9968992324 | AC168: 0.003100767601 | AD168: 3.936 | AE168: 0.9808478055 | AF168: 0.01915219452
L169: 0 | M169: 0 | N169: 0 | O169: 0 | P169: 0 | Q169: 0 | R169: 0 | S169: 0 | T169: 0 | U169: 0 | V169: 0 | W169: 0 | X169: 0 | Y169: 0 | Z169: 0 | AA169: 5.773 | AB169: 0.9968992324 | AC169: 0.003100767601 | AD169: 3.936 | AE169: 0.9808478055 | AF169: 0.01915219452
L170: 0 | M170: 0 | N170: 0 | O170: 0 | P170: 0 | Q170: 0 | R170: 0 | S170: 0 | T170: 0 | U170: 0 | V170: 0 | W170: 0 | X170: 0 | Y170: 0 | Z170: 0 | AA170: 5.773 | AB170: 0.9968992324 | AC170: 0.003100767601 | AD170: 3.936 | AE170: 0.9808478055 | AF170: 0.01915219452
L171: 0 | M171: 0 | N171: 0 | O171: 0 | P171: 0 | Q171: 0 | R171: 0 | S171: 0 | T171: 0 | U171: 0 | V171: 0 | W171: 0 | X171: 0 | Y171: 0 | Z171: 0 | AA171: 5.773 | AB171: 0.9968992324 | AC171: 0.003100767601 | AD171: 3.936 | AE171: 0.9808478055 | AF171: 0.01915219452
L172: 0 | M172: 0 | N172: 0 | O172: 0 | P172: 0 | Q172: 0 | R172: 0 | S172: 0 | T172: 0 | U172: 0 | V172: 0 | W172: 0 | X172: 0 | Y172: 0 | Z172: 0 | AA172: 5.773 | AB172: 0.9968992324 | AC172: 0.003100767601 | AD172: 3.936 | AE172: 0.9808478055 | AF172: 0.01915219452
L173: 0 | M173: 0 | N173: 0 | O173: 0 | P173: 0 | Q173: 0 | R173: 0 | S173: 0 | T173: 0 | U173: 0 | V173: 0 | W173: 0 | X173: 0 | Y173: 0 | Z173: 0 | AA173: 5.773 | AB173: 0.9968992324 | AC173: 0.003100767601 | AD173: 3.936 | AE173: 0.9808478055 | AF173: 0.01915219452
L174: 0 | M174: 0 | N174: 0 | O174: 0 | P174: 0 | Q174: 0 | R174: 0 | S174: 0 | T174: 0 | U174: 0 | V174: 0 | W174: 0 | X174: 0 | Y174: 0 | Z174: 0 | AA174: 5.773 | AB174: 0.9968992324 | AC174: 0.003100767601 | AD174: 3.936 | AE174: 0.9808478055 | AF174: 0.01915219452
L175: 0 | M175: 0 | N175: 0 | O175: 0 | P175: 0 | Q175: 0 | R175: 0 | S175: 0 | T175: 0 | U175: 0 | V175: 0 | W175: 0 | X175: 0 | Y175: 0 | Z175: 0 | AA175: 5.773 | AB175: 0.9968992324 | AC175: 0.003100767601 | AD175: 3.936 | AE175: 0.9808478055 | AF175: 0.01915219452
L176: 0 | M176: 0 | N176: 0 | O176: 0 | P176: 0 | Q176: 0 | R176: 0 | S176: 0 | T176: 0 | U176: 0 | V176: 0 | W176: 0 | X176: 0 | Y176: 0 | Z176: 0 | AA176: 5.773 | AB176: 0.9968992324 | AC176: 0.003100767601 | AD176: 3.936 | AE176: 0.9808478055 | AF176: 0.01915219452
L177: 0 | M177: 0 | N177: 0 | O177: 0 | P177: 0 | Q177: 0 | R177: 0 | S177: 0 | T177: 0 | U177: 0 | V177: 0 | W177: 0 | X177: 0 | Y177: 0 | Z177: 0 | AA177: 5.773 | AB177: 0.9968992324 | AC177: 0.003100767601 | AD177: 3.936 | AE177: 0.9808478055 | AF177: 0.01915219452
L178: 0 | M178: 0 | N178: 0 | O178: 0 | P178: 0 | Q178: 0 | R178: 0 | S178: 0 | T178: 0 | U178: 0 | V178: 0 | W178: 0 | X178: 0 | Y178: 0 | Z178: 0 | AA178: 5.773 | AB178: 0.9968992324 | AC178: 0.003100767601 | AD178: 3.936 | AE178: 0.9808478055 | AF178: 0.01915219452
L179: 0 | M179: 0 | N179: 0 | O179: 0 | P179: 0 | Q179: 0 | R179: 0 | S179: 0 | T179: 0 | U179: 0 | V179: 0 | W179: 0 | X179: 0 | Y179: 0 | Z179: 0 | AA179: 5.773 | AB179: 0.9968992324 | AC179: 0.003100767601 | AD179: 3.936 | AE179: 0.9808478055 | AF179: 0.01915219452
L180: 0 | M180: 0 | N180: 0 | O180: 0 | P180: 0 | Q180: 0 | R180: 0 | S180: 0 | T180: 0 | U180: 0 | V180: 0 | W180: 0 | X180: 0 | Y180: 0 | Z180: 0 | AA180: 5.773 | AB180: 0.9968992324 | AC180: 0.003100767601 | AD180: 3.936 | AE180: 0.9808478055 | AF180: 0.01915219452
L181: 0 | M181: 0 | N181: 0 | O181: 0 | P181: 0 | Q181: 0 | R181: 0 | S181: 0 | T181: 0 | U181: 0 | V181: 0 | W181: 0 | X181: 0 | Y181: 0 | Z181: 0 | AA181: 5.773 | AB181: 0.9968992324 | AC181: 0.003100767601 | AD181: 3.936 | AE181: 0.9808478055 | AF181: 0.01915219452
L182: 0 | M182: 0 | N182: 0 | O182: 0 | P182: 0 | Q182: 0 | R182: 0 | S182: 0 | T182: 0 | U182: 0 | V182: 0 | W182: 0 | X182: 0 | Y182: 0 | Z182: 0 | AA182: 5.773 | AB182: 0.9968992324 | AC182: 0.003100767601 | AD182: 3.936 | AE182: 0.9808478055 | AF182: 0.01915219452
L183: 0 | M183: 0 | N183: 0 | O183: 0 | P183: 0 | Q183: 0 | R183: 0 | S183: 0 | T183: 0 | U183: 0 | V183: 0 | W183: 0 | X183: 0 | Y183: 0 | Z183: 0 | AA183: 5.773 | AB183: 0.9968992324 | AC183: 0.003100767601 | AD183: 3.936 | AE183: 0.9808478055 | AF183: 0.01915219452
L184: 0 | M184: 0 | N184: 0 | O184: 0 | P184: 0 | Q184: 0 | R184: 0 | S184: 0 | T184: 0 | U184: 0 | V184: 0 | W184: 0 | X184: 0 | Y184: 0 | Z184: 0 | AA184: 5.773 | AB184: 0.9968992324 | AC184: 0.003100767601 | AD184: 3.936 | AE184: 0.9808478055 | AF184: 0.01915219452
L185: 0 | M185: 0 | N185: 0 | O185: 0 | P185: 0 | Q185: 0 | R185: 0 | S185: 0 | T185: 0 | U185: 0 | V185: 0 | W185: 0 | X185: 0 | Y185: 0 | Z185: 0 | AA185: 5.773 | AB185: 0.9968992324 | AC185: 0.003100767601 | AD185: 3.936 | AE185: 0.9808478055 | AF185: 0.01915219452
L186: 0 | M186: 0 | N186: 0 | O186: 0 | P186: 0 | Q186: 0 | R186: 0 | S186: 0 | T186: 0 | U186: 0 | V186: 0 | W186: 0 | X186: 0 | Y186: 0 | Z186: 0 | AA186: 5.773 | AB186: 0.9968992324 | AC186: 0.003100767601 | AD186: 3.936 | AE186: 0.9808478055 | AF186: 0.01915219452
L187: 0 | M187: 0 | N187: 0 | O187: 0 | P187: 0 | Q187: 0 | R187: 0 | S187: 0 | T187: 0 | U187: 0 | V187: 0 | W187: 0 | X187: 0 | Y187: 0 | Z187: 0 | AA187: 5.773 | AB187: 0.9968992324 | AC187: 0.003100767601 | AD187: 3.936 | AE187: 0.9808478055 | AF187: 0.01915219452
L188: 0 | M188: 0 | N188: 0 | O188: 0 | P188: 0 | Q188: 0 | R188: 0 | S188: 0 | T188: 0 | U188: 0 | V188: 0 | W188: 0 | X188: 0 | Y188: 0 | Z188: 0 | AA188: 5.773 | AB188: 0.9968992324 | AC188: 0.003100767601 | AD188: 3.936 | AE188: 0.9808478055 | AF188: 0.01915219452
L189: 0 | M189: 0 | N189: 0 | O189: 0 | P189: 0 | Q189: 0 | R189: 0 | S189: 0 | T189: 0 | U189: 0 | V189: 0 | W189: 0 | X189: 0 | Y189: 0 | Z189: 0 | AA189: 5.773 | AB189: 0.9968992324 | AC189: 0.003100767601 | AD189: 3.936 | AE189: 0.9808478055 | AF189: 0.01915219452
L190: 0 | M190: 0 | N190: 0 | O190: 0 | P190: 0 | Q190: 0 | R190: 0 | S190: 0 | T190: 0 | U190: 0 | V190: 0 | W190: 0 | X190: 0 | Y190: 0 | Z190: 0 | AA190: 5.773 | AB190: 0.9968992324 | AC190: 0.003100767601 | AD190: 3.936 | AE190: 0.9808478055 | AF190: 0.01915219452
L191: 0 | M191: 0 | N191: 0 | O191: 0 | P191: 0 | Q191: 0 | R191: 0 | S191: 0 | T191: 0 | U191: 0 | V191: 0 | W191: 0 | X191: 0 | Y191: 0 | Z191: 0 | AA191: 5.773 | AB191: 0.9968992324 | AC191: 0.003100767601 | AD191: 3.936 | AE191: 0.9808478055 | AF191: 0.01915219452
L192: 0 | M192: 0 | N192: 0 | O192: 0 | P192: 0 | Q192: 0 | R192: 0 | S192: 0 | T192: 0 | U192: 0 | V192: 0 | W192: 0 | X192: 0 | Y192: 0 | Z192: 0 | AA192: 5.773 | AB192: 0.9968992324 | AC192: 0.003100767601 | AD192: 3.936 | AE192: 0.9808478055 | AF192: 0.01915219452
L193: 0 | M193: 0 | N193: 0 | O193: 0 | P193: 0 | Q193: 0 | R193: 0 | S193: 0 | T193: 0 | U193: 0 | V193: 0 | W193: 0 | X193: 0 | Y193: 0 | Z193: 0 | AA193: 5.773 | AB193: 0.9968992324 | AC193: 0.003100767601 | AD193: 3.936 | AE193: 0.9808478055 | AF193: 0.01915219452
L194: 0 | M194: 0 | N194: 0 | O194: 0 | P194: 0 | Q194: 0 | R194: 0 | S194: 0 | T194: 0 | U194: 0 | V194: 0 | W194: 0 | X194: 0 | Y194: 0 | Z194: 0 | AA194: 5.773 | AB194: 0.9968992324 | AC194: 0.003100767601 | AD194: 3.936 | AE194: 0.9808478055 | AF194: 0.01915219452
L195: 0 | M195: 0 | N195: 0 | O195: 0 | P195: 0 | Q195: 0 | R195: 0 | S195: 0 | T195: 0 | U195: 0 | V195: 0 | W195: 0 | X195: 0 | Y195: 0 | Z195: 0 | AA195: 5.773 | AB195: 0.9968992324 | AC195: 0.003100767601 | AD195: 3.936 | AE195: 0.9808478055 | AF195: 0.01915219452
L196: 0 | M196: 0 | N196: 0 | O196: 0 | P196: 0 | Q196: 0 | R196: 0 | S196: 0 | T196: 0 | U196: 0 | V196: 0 | W196: 0 | X196: 0 | Y196: 0 | Z196: 0 | AA196: 5.773 | AB196: 0.9968992324 | AC196: 0.003100767601 | AD196: 3.936 | AE196: 0.9808478055 | AF196: 0.01915219452
L197: =IF(E197=1,1,0) -> 0 | M197: =IF(E197=2,1,0) -> 0 | N197: =IF(F197=1,1,0) -> 0 | O197: =IF(F197=2,1,0) -> 0 | P197: =IF(G197=1,1,0) -> 0 | Q197: =IF(G197=2,1,0) -> 0 | R197: =IF(H197=1,1,0) -> 0 | S197: =IF(H197=2,1,0) -> 0 | T197: =IF(I197=1,1,0) -> 0 | U197: =IF(I197=2,1,0) -> 0 | V197: =IF(K197="A",1,0) -> 0 | W197: =IF(K197="B",1,0) -> 0 | X197: =IF(K197="C",1,0) -> 0 | Y197: =IF(K197="D",1,0) -> 0 | Z197: =IF(K197="E",1,0) -> 0 | AA197: =(-0.0296*T197)-(1.046*U197)-(1.34*P197)-(0.1562*Q197)-(1.051*R197)-(1.69*S197)-(1.153*N197)-(0.733*O197)+(2.867*V197)+(1.675*W197)+(1.031*X197)+(1.445*Y197)-(0.9243*Z197)-(0.371*C197)+5.773 -> 5.773 | AB197: =(EXP(AA197))/(1+(EXP(AA197))) -> 0.9968992324 | AC197: =1-AB197 -> 0.003100767601 | AD197: =(-0.416*L197)+(-0.9796*M197)+(0.06187*T197)+(-1.039*U197)+(-0.8492*P197)+(-1.698*Q197)+(-0.5815*R197)+(-1.828*S197)+(-0.768*N197)+(-0.9855*O197)+(1.345*V197)+(0.4466*W197)+(-0.797*X197)+(-0.3943*Y197)+(-3.606*Z197)+3.936 -> 3.936 | AE197: =(EXP(AD197))/(1+(EXP(AD197))) -> 0.9808478055 | AF197: =1-AE197 -> 0.01915219452 | AG197: =IF(A197="","",IF(C197="","",IF(J197<>0,"R",IF(B197<22,"R",IF(D197="SI","R",IF(AC197>AB197,"R","1ª-7ª")))))) ->  | AH197: =IF(A197="","",IF(J197<>0,"R",IF(B197<22,"R",IF(D197="SI","R",IF(AF197>AE197,"R","1ª-7ª"))))) -> 
L198: 0 | M198: 0 | N198: 0 | O198: 0 | P198: 0 | Q198: 0 | R198: 0 | S198: 0 | T198: 0 | U198: 0 | V198: 0 | W198: 0 | X198: 0 | Y198: 0 | Z198: 0 | AA198: 5.773 | AB198: 0.9968992324 | AC198: 0.003100767601 | AD198: 3.936 | AE198: 0.9808478055 | AF198: 0.01915219452
L199: 0 | M199: 0 | N199: 0 | O199: 0 | P199: 0 | Q199: 0 | R199: 0 | S199: 0 | T199: 0 | U199: 0 | V199: 0 | W199: 0 | X199: 0 | Y199: 0 | Z199: 0 | AA199: 5.773 | AB199: 0.9968992324 | AC199: 0.003100767601 | AD199: 3.936 | AE199: 0.9808478055 | AF199: 0.01915219452
L200: 0 | M200: 0 | N200: 0 | O200: 0 | P200: 0 | Q200: 0 | R200: 0 | S200: 0 | T200: 0 | U200: 0 | V200: 0 | W200: 0 | X200: 0 | Y200: 0 | Z200: 0 | AA200: 5.773 | AB200: 0.9968992324 | AC200: 0.003100767601 | AD200: 3.936 | AE200: 0.9808478055 | AF200: 0.01915219452
L201: 0 | M201: 0 | N201: 0 | O201: 0 | P201: 0 | Q201: 0 | R201: 0 | S201: 0 | T201: 0 | U201: 0 | V201: 0 | W201: 0 | X201: 0 | Y201: 0 | Z201: 0 | AA201: 5.773 | AB201: 0.9968992324 | AC201: 0.003100767601 | AD201: 3.936 | AE201: 0.9808478055 | AF201: 0.01915219452
... 803 more rows
